bitfinex-derivatives/quotes_BTCF0:USTF0_20251229
["timestamp","ask_amount","ask_price","bid_price","bid_amount"]
[1767019307405,0.00017049,87975.0,87957.0,0.00017049]
[1767019307606,0.0113804,87974.0,87957.0,0.00017049]
[1767019307807,0.00017049,87975.0,87957.0,0.00017049]
[1767019308311,0.0113809,87970.0,87937.0,0.0113851]
[1767019308513,0.0113809,87970.0,87938.0,0.11512]
[1767019308694,0.0113809,87970.0,87939.0,0.15472]
[1767019309096,0.0113808,87971.0,87939.0,0.15472]
[1767019309307,0.00017049,87964.0,87946.0,0.00017049]
[1767019309908,0.09672,87976.0,87950.0,0.0113834]
[1767019310109,0.09672,87976.0,87951.0,0.09672]
[1767019311107,0.00017049,87972.0,87952.0,0.0113832]
[1767019311296,0.00017049,87972.0,87951.0,0.09672]
[1767019311503,0.00017049,87972.0,87946.0,0.00017049]
[1767019311504,0.0113808,87971.0,87946.0,0.00017049]
[1767019311901,0.00017049,87972.0,87946.0,0.00017049]
[1767019312204,0.00017049,87972.0,87947.0,0.09672]
[1767019312908,0.00017049,87972.0,87948.0,0.0113837]
[1767019313101,0.00017049,87972.0,87947.0,0.09672]
[1767019313302,0.00017049,87972.0,87952.0,0.0113831]
[1767019313612,0.00017049,87972.0,87947.0,0.09672]
[1767019313813,0.09672,87990.0,87947.0,0.09672]
[1767019314010,0.0113786,87988.0,87957.0,0.0113825]
[1767019314207,0.0113786,87988.0,87959.0,0.0113823]
[1767019314208,0.02415143,87987.0,87959.0,0.0113823]
[1767019314404,0.0113786,87988.0,87960.0,0.15468]
[1767019314605,0.0113786,87988.0,87961.0,0.011382]
[1767019314915,0.00017049,87983.0,87965.0,0.00017049]
[1767019317011,0.00017049,87983.0,87965.0,0.01155199]
[1767019317204,0.00017049,87983.0,87965.0,0.00017049]
[1767019317412,0.00017049,87983.0,87971.0,0.0113806]
[1767019317709,0.00017049,87983.0,87967.0,0.0113813]
[1767019319105,0.00017049,87983.0,87965.0,0.00017049]
[1767019319502,0.00017049,87983.0,87966.0,0.09672]
[1767019319703,0.0113794,87982.0,87966.0,0.09672]
[1767019319908,0.0113797,87980.0,87965.0,0.00017049]
[1767019320114,0.01154969,87983.0,87965.0,0.00017049]
[1767019320606,9e-08,87983.0,87981.0,0.0113794]
[1767019320801,0.09672,87997.0,87974.0,0.09672]
[1767019321111,0.09672,88004.0,87975.0,0.15464]
[1767019321311,0.02421851,88003.0,87976.0,0.09672]
[1767019321509,0.0113736,88027.0,87984.0,0.0113791]
[1767019321722,0.0113732,88030.0,87978.0,0.06010678]
[1767019321902,0.0113732,88030.0,87976.0,0.09672]
[1767019321903,0.0113731,88031.0,87994.0,0.00017049]
[1767019322104,0.0113729,88032.0,88004.0,0.0113765]
[1767019322308,0.0113728,88033.0,88005.0,0.09672]
[1767019322711,0.0113723,88037.0,88006.0,0.0113762]
[1767019323013,0.00016251,88026.0,88007.0,0.05792]
[1767019323414,0.00016251,88026.0,87998.0,0.0113772]
[1767019323613,0.01153621,88026.0,88000.0,0.0113769]
[1767019324124,0.01153621,88026.0,87999.0,0.15464]
[1767019324125,0.00016251,88026.0,88005.0,0.0113763]
[1767019324312,1e-07,88028.0,88023.0,0.0113739]
[1767019324609,1e-07,88028.0,88025.0,0.0113737]
[1767019324809,1e-07,88028.0,88021.0,0.0113743]
[1767019325509,1e-07,88028.0,88020.0,0.09672]
[1767019325706,1e-07,88028.0,88020.0,0.1080943]
[1767019326104,1e-07,88028.0,88020.0,0.09672]
[1767019327203,1e-07,88028.0,88016.0,0.00017049]
[1767019328015,0.0113735,88028.0,88016.0,0.00017049]
[1767019328314,1e-07,88028.0,88015.0,0.011375]
[1767019328516,1e-07,88028.0,88012.0,0.0113754]
[1767019328715,1e-07,88028.0,88005.0,0.11360796]
[1767019328918,1e-07,88028.0,88023.0,0.0113739]
[1767019329119,1e-07,88028.0,88017.0,0.09685049]
[1767019329618,1e-07,88028.0,88020.0,0.0113744]
[1767019329812,0.00017049,88034.0,88017.0,9e-08]
[1767019330114,0.011374,88023.0,87998.0,0.0113772]
[1767019330304,0.09668,88022.0,87995.0,0.1546]
[1767019330507,0.09668,88022.0,88001.0,0.0113769]
[1767019330715,0.0113727,88034.0,88009.0,0.0113758]
[1767019330916,0.0113727,88034.0,87991.0,0.0113781]
[1767019330917,0.0001704,88030.0,88013.0,0.0001704]
[1767019331214,0.0113733,88029.0,88008.0,0.09668]
[1767019331421,0.0001704,88030.0,88008.0,0.108056]
[1767019331613,0.0001704,88030.0,87972.0,0.0113805]
[1767019331811,0.0113754,88013.0,87988.0,0.0113785]
[1767019332008,0.09668,88017.0,87984.0,0.011379]
[1767019332204,0.0001704,88009.0,87979.0,0.0187697]
[1767019332517,0.0113765,88005.0,87981.0,0.0113794]
[1767019332812,0.0113767,88003.0,87980.0,0.09668]
[1767019333016,0.0113767,88003.0,87979.0,0.00739]
[1767019333218,0.09668,88004.0,87982.0,0.0001704]
[1767019333819,0.0113774,87997.0,87982.0,0.0001704]
[1767019334019,0.09668,88004.0,87954.0,0.0113829]
[1767019334212,0.09668,88004.0,87955.0,0.115]
[1767019334411,0.0113793,87983.0,87962.0,0.0113818]
[1767019334718,0.09668,87982.0,87955.0,0.115]
[1767019334907,0.09668,87982.0,87960.0,0.0113821]
[1767019335105,0.0001705,87977.0,87960.0,0.0115526]
[1767019335613,0.05792,87987.0,87960.0,0.0001705]
[1767019335820,0.09668,87986.0,87968.0,0.011381]
[1767019336017,0.1080579,87993.0,87968.0,0.0113811]
[1767019336314,0.1080579,87993.0,87960.0,0.0001705]
[1767019336315,0.09668,87993.0,87960.0,0.0001705]
[1767019336627,0.0113791,87984.0,87961.0,0.011382]
[1767019336815,0.0113793,87982.0,87960.0,0.0001705]
[1767019337007,0.0113798,87979.0,87960.0,0.0001705]
[1767019337208,0.1659793,87983.0,87960.0,0.0001705]
[1767019337419,0.1546,87983.0,87960.0,0.0001705]
[1767019337619,0.0113794,87982.0,87960.0,0.0001705]
[1767019338719,0.0001705,87985.0,87963.0,0.0113817]
[1767019339018,0.15032,87984.0,87962.0,0.0113818]
[1767019340018,0.0001705,87985.0,87972.0,0.0113805]
[1767019340317,0.03064721,87983.0,87961.0,0.11367124]
[1767019340516,0.0968505,87985.0,87961.0,0.11367124]
[1767019340723,0.0001705,87985.0,87960.0,0.0001705]
[1767019341024,0.0001705,87985.0,87969.0,0.0113809]
[1767019341222,0.0001705,87985.0,87972.0,0.0113806]
[1767019341922,0.0001705,87985.0,87960.0,0.0001705]
[1767019341923,0.0115496,87985.0,87960.0,0.0001705]
[1767019342220,0.0113812,87968.0,87960.0,0.0001705]
[1767019342420,0.09668,87970.0,87960.0,5e-07]
[1767019342725,0.07168,87969.0,87960.0,5e-07]
[1767019342921,0.05792,87976.0,87960.0,5e-07]
[1767019343121,0.0001705,87985.0,87961.0,0.011382]
[1767019343328,0.09668,87984.0,87960.0,5e-07]
[1767019343925,0.09668,87984.0,87964.0,0.0113815]
[1767019344123,0.0001705,87985.0,87960.0,0.0113826]
[1767019344328,0.09668,87984.0,87963.0,0.0113817]
[1767019344525,0.09668,87984.0,87960.0,5e-07]
[1767019344722,0.0113793,87983.0,87960.0,5e-07]
[1767019344929,0.09668,87984.0,87960.0,5e-07]
[1767019345227,0.09668,87984.0,87962.0,0.0113818]
[1767019345728,0.1080591,87984.0,87960.0,5e-07]
[1767019346124,0.0113798,87979.0,87960.0,5e-07]
[1767019346430,0.0113793,87982.0,87960.0,5e-07]
[1767019346639,0.09668,87984.0,87960.0,5e-07]
[1767019347222,0.0113793,87983.0,87960.0,5e-07]
[1767019347617,0.011381,87969.0,87960.0,5e-07]
[1767019347834,0.0001705,87985.0,87960.0,5e-07]
[1767019347835,0.09668,87972.0,87960.0,5e-07]
[1767019348221,0.0001705,87985.0,87960.0,5e-07]
[1767019348418,0.0001705,87985.0,87968.0,0.0113811]
[1767019348616,0.0001705,87985.0,87972.0,0.0113805]
[1767019348919,0.0113759,88009.0,87960.0,5e-07]
[1767019348920,0.09668,87993.0,87978.0,0.0113798]
[1767019349120,0.09668,87996.0,87971.0,0.09668]
[1767019349320,0.09668,88012.0,87972.0,0.05792]
[1767019349529,0.09668,88017.0,87979.0,0.0113797]
[1767019349731,0.0113749,88016.0,87973.0,0.11366671]
[1767019350029,0.0001705,88007.0,87989.0,0.0001705]
[1767019350326,0.0113767,88003.0,87989.0,0.0001705]
[1767019350526,0.05792,88006.0,87989.0,0.0001705]
[1767019350723,0.1546,88005.0,87989.0,0.0001705]
[1767019352238,0.0113737,88026.0,87989.0,0.0968505]
[1767019352535,0.1546,88025.0,87996.0,0.0113775]
[1767019352734,0.11116,88024.0,87996.0,0.0113775]
[1767019353332,0.00017041,88019.0,88001.0,0.00017041]
[1767019355929,0.00017041,88019.0,87977.0,0.09668]
[1767019356130,0.11116,88024.0,87979.0,0.0113796]
[1767019356330,0.0113759,88009.0,87979.0,0.0113796]
[1767019356530,0.0113761,88007.0,87979.0,0.0113796]
[1767019356725,0.09668,88006.0,87982.0,0.0113792]
[1767019356933,0.00227202,88028.0,87985.0,0.00017041]
[1767019356934,0.0113739,88025.0,87985.0,0.00017041]
[1767019357131,0.02430813,88024.0,87995.0,0.0113776]
[1767019357338,0.10764,88023.0,88001.0,0.0113768]
[1767019357838,0.10764,88023.0,87997.0,0.0113773]
[1767019358033,0.00017041,88019.0,88001.0,0.00017041]
[1767019359228,0.00017041,88019.0,88005.0,0.0113763]
[1767019359436,0.00227202,88028.0,88012.0,0.0113754]
[1767019360031,0.00227202,88028.0,88007.0,0.011376]
[1767019360441,0.00227202,88028.0,88010.0,0.0113757]
[1767019360738,0.00017041,88026.0,88015.0,0.011375]
[1767019360934,0.00017041,88026.0,88011.0,0.0113755]
[1767019361735,0.00017041,88026.0,88001.0,0.00017041]
[1767019361935,0.00017041,88026.0,88005.0,0.0113763]
[1767019362246,0.05792,88054.0,88012.0,0.0113754]
[1767019362442,0.05792,88054.0,88021.0,0.0113742]
[1767019362443,0.0113704,88051.0,88021.0,0.0113742]
[1767019362638,0.00227124,88058.0,88023.0,0.0113739]
[1767019362836,0.12098533,88057.0,88020.0,0.09668]
[1767019363038,0.00227124,88058.0,88047.0,0.0113709]
[1767019363240,1e-08,88058.0,88045.0,0.0113711]
[1767019363636,1e-08,88058.0,88051.0,0.0113703]
[1767019363844,0.09668,88076.0,88051.0,0.0113703]
[1767019364039,0.09668,88076.0,88044.0,0.00017041]
[1767019364040,0.09668,88075.0,88047.0,0.0113708]
[1767019364241,0.09668,88075.0,88044.0,0.00017041]
[1767019364551,0.09668,88075.0,88048.0,0.0113707]
[1767019364732,0.09668,88075.0,88044.0,0.00017041]
[1767019365048,0.09668,88075.0,88055.0,0.0113699]
[1767019365242,0.09668,88075.0,88051.0,0.0113703]
[1767019366248,0.00227047,88088.0,88060.0,0.0113692]
[1767019366447,0.0113664,88083.0,88065.0,0.00017041]
[1767019366639,0.1659658,88087.0,88065.0,0.00017041]
[1767019366835,0.1546,88087.0,88065.0,0.00017041]
[1767019367246,0.1659658,88087.0,88065.0,0.00017041]
[1767019367546,0.0113659,88086.0,88065.0,0.00017041]
[1767019368250,0.1659659,88087.0,88065.0,0.00017041]
[1767019369159,0.1546,88087.0,88065.0,0.00017041]
[1767019369541,0.00227047,88088.0,88065.0,0.00017041]
[1767019369542,0.00227047,88088.0,88066.0,0.0113685]
[1767019369742,0.15452,88087.0,88066.0,0.0113685]
[1767019370147,0.15452,88087.0,88067.0,0.00396]
[1767019371438,0.00227047,88088.0,88067.0,0.00396]
[1767019371640,0.05,88117.0,88077.0,0.011367]
[1767019371843,0.0113632,88107.0,88088.0,0.00017031]
[1767019372044,0.0113635,88105.0,88088.0,0.00017031]
[1767019372245,0.0113638,88103.0,88088.0,0.00017031]
[1767019372438,0.20456449,88110.0,88071.0,0.09664]
[1767019372644,0.09664,88111.0,88092.0,0.011365]
[1767019372853,0.09664,88111.0,88070.0,0.20456449]
[1767019372854,0.09664,88111.0,88101.0,0.0113639]
[1767019373047,0.09664,88111.0,88081.0,0.05788]
[1767019373048,0.05788,88115.0,88095.0,0.09664]
[1767019373353,0.05788,88115.0,88096.0,0.1080045]
[1767019373547,0.00016998,88114.0,88097.0,0.09664]
[1767019374947,0.00016998,88114.0,88097.0,0.0966]
[1767019375152,0.00016998,88114.0,88097.0,0.1079645]
[1767019375555,0.00016998,88114.0,88097.0,0.0966]
[1767019376247,0.00016998,88114.0,88098.0,0.0113643]
[1767019376448,0.00016998,88114.0,88097.0,0.1079644]
[1767019376656,0.00016998,88114.0,88100.0,0.011364]
[1767019377047,0.00016998,88114.0,88097.0,0.0966]
[1767019377048,0.00016998,88114.0,88098.0,0.0113643]
[1767019377244,0.09664,88120.0,88101.0,0.0113639]
[1767019377450,0.09664,88120.0,88098.0,0.0113643]
[1767019377959,0.09664,88120.0,88101.0,0.0113639]
[1767019378154,0.09664,88120.0,88097.0,0.0966]
[1767019378155,0.09664,88120.0,88097.0,0.1079644]
[1767019378360,0.09664,88120.0,88097.0,0.0966]
[1767019379657,0.09664,88120.0,88097.0,0.1079644]
[1767019380249,0.09664,88120.0,88100.0,0.0113641]
[1767019380954,0.09664,88120.0,88097.0,0.0966]
[1767019380955,0.09664,88120.0,88097.0,0.1079645]
[1767019381262,0.0113623,88114.0,88098.0,0.05784]
[1767019381560,0.09664,88120.0,88101.0,0.0113638]
[1767019381762,0.05784,88129.0,88113.0,0.0113623]
[1767019381951,0.24148,88142.0,88112.0,0.00017031]
[1767019381952,0.0966,88133.0,88112.0,0.00017031]
[1767019382152,0.05784,88135.0,88112.0,0.00017031]
[1767019382464,0.05784,88135.0,88113.0,0.0113624]
[1767019382666,0.0113597,88134.0,88112.0,0.00017031]
[1767019382965,0.05784,88135.0,88112.0,0.00017031]
[1767019383162,0.0113615,88121.0,88096.0,0.0113645]
[1767019383466,0.05784,88125.0,88103.0,0.0113637]
[1767019383662,0.05784,88125.0,88103.0,0.0966]
[1767019383863,0.05784,88125.0,88072.0,0.0113677]
[1767019384066,0.0113619,88117.0,88091.0,0.0113651]
[1767019384277,0.00016998,88109.0,88092.0,0.00017021]
[1767019384481,0.05784,88108.0,88092.0,0.00017021]
[1767019384675,0.09656,88107.0,88084.0,0.09651]
[1767019384870,0.20456449,88100.0,88077.0,0.09656]
[1767019385075,0.09656,88107.0,88077.0,0.09656]
[1767019385076,0.05784,88099.0,88077.0,0.09656]
[1767019385373,0.0113644,88098.0,88077.0,0.09656]
[1767019385577,0.011365,88094.0,88076.0,8.748e-05]
[1767019385779,0.09656,88097.0,88079.0,0.00017021]
[1767019386080,0.09656,88097.0,88076.0,3.748e-05]
[1767019386576,0.0113651,88092.0,88076.0,3.748e-05]
[1767019387078,0.09656,88097.0,88076.0,3.748e-05]
[1767019387079,8.593e-05,88091.0,88076.0,3.748e-05]
[1767019387280,0.0692035,88105.0,88076.0,3.748e-05]
[1767019387479,0.0113643,88099.0,88076.0,3.748e-05]
[1767019387777,0.0113648,88095.0,88076.0,3.748e-05]
[1767019387983,0.05784,88096.0,88076.0,3.748e-05]
[1767019388184,0.011361,88124.0,88077.0,0.11352348]
[1767019388380,0.00011998,88109.0,88086.0,0.0113658]
[1767019388575,0.0113635,88105.0,88084.0,0.09656]
[1767019388779,0.01148298,88109.0,88084.0,0.09656]
[1767019388973,0.00011998,88109.0,88084.0,0.09656]
[1767019389182,0.0113631,88108.0,88084.0,0.1079261]
[1767019389485,0.20456449,88100.0,88077.0,0.09656]
[1767019389671,0.20456449,88100.0,88076.0,3.748e-05]
[1767019389876,0.20456449,88100.0,88076.0,0.09659748]
[1767019390077,0.05784,88101.0,88076.0,0.09659748]
[1767019390278,0.0113643,88099.0,88076.0,0.09659748]
[1767019390487,0.05784,88101.0,88076.0,0.09659748]
[1767019390878,0.00011998,88109.0,88076.0,0.10796458]
[1767019391078,0.1544,88108.0,88079.0,0.0113668]
[1767019391282,0.1544,88108.0,88076.0,0.09659748]
[1767019391482,0.1544,88108.0,88078.0,0.0113668]
[1767019391786,0.05784,88108.0,88086.0,0.0113658]
[1767019391971,0.00011998,88109.0,88076.0,0.09659748]
[1767019391972,0.00011998,88109.0,88087.0,0.1544]
[1767019392174,0.00011998,88109.0,88089.0,0.0113655]
[1767019392587,0.00011998,88109.0,88088.0,0.1079255]
[1767019392774,0.00011998,88109.0,88090.0,0.0113654]
[1767019392980,0.00011998,88109.0,88088.0,0.09656]
[1767019392981,0.00011998,88109.0,88092.0,0.011365]
[1767019393986,0.00011998,88109.0,88094.0,0.0113648]
[1767019394185,0.00011998,88109.0,88093.0,0.00017021]
[1767019394891,0.00011998,88109.0,88093.0,0.01153511]
[1767019395391,0.00011998,88109.0,88094.0,0.0113647]
[1767019395581,0.00011998,88109.0,88093.0,0.00017021]
[1767019395582,0.05784,88119.0,88093.0,0.00017021]
[1767019395884,0.0113639,88102.0,88079.0,0.00396]
[1767019396091,0.011365,88093.0,88079.0,0.00396]
[1767019396788,0.09656,88101.0,88079.0,0.00396]
[1767019397085,0.05784,88111.0,88092.0,0.0113651]
[1767019397286,0.02406535,88110.0,88090.0,0.0113654]
[1767019397476,0.1544,88111.0,88091.0,0.0113652]
[1767019397682,0.1544,88111.0,88090.0,0.0113653]
[1767019397881,0.1544,88111.0,88086.0,0.0113658]
[1767019398186,0.00017021,88107.0,88086.0,0.0113658]
[1767019398577,0.00017021,88107.0,88082.0,0.0113663]
[1767019398782,0.00017021,88107.0,88084.0,0.05784]
[1767019398980,0.00017021,88107.0,88085.0,0.011366]
[1767019399287,0.01153351,88107.0,88084.0,0.05784]
[1767019399588,0.01153351,88107.0,88084.0,0.0692061]
[1767019399994,0.0113636,88104.0,88084.0,0.05784]
[1767019400187,0.0113636,88104.0,88081.0,0.00017021]
[1767019400384,0.0113636,88104.0,88082.0,0.1657664]
[1767019401079,0.20456449,88100.0,88081.0,0.00017021]
[1767019401387,0.09656,88099.0,88081.0,0.00017021]
[1767019401887,0.09656,88099.0,88081.0,1e-08]
[1767019402090,0.0240824,88098.0,88070.0,0.0113678]
[1767019402386,0.1784824,88097.0,88078.0,0.0113669]
[1767019402589,0.0240824,88096.0,88075.0,0.0113673]
[1767019402794,0.0240824,88095.0,88075.0,0.0113673]
[1767019403092,0.0240824,88094.0,88076.0,0.00017021]
[1767019403290,0.1657646,88097.0,88076.0,0.00017021]
[1767019403489,0.02407734,88096.0,88076.0,0.00017021]
[1767019403680,0.0113658,88087.0,88064.0,0.09656]
[1767019403886,0.05784,88086.0,88064.0,0.1079287]
[1767019404086,0.05784,88086.0,88066.0,0.0113684]
[1767019404395,0.05784,88086.0,88046.0,0.011371]
[1767019404396,0.20456449,88080.0,88046.0,0.011371]
[1767019404586,0.0113686,88066.0,88044.0,0.09656]
[1767019404784,0.05784,88065.0,88041.0,0.05784]
[1767019405091,0.0113694,88059.0,88040.0,0.00012334]
[1767019405283,0.05784,88058.0,88040.0,0.00012334]
[1767019405485,0.20456449,88050.0,88040.0,0.00012334]
[1767019405790,0.00017031,88054.0,88040.0,0.00012334]
[1767019405978,0.0113706,88050.0,88040.0,0.00012334]
[1767019406183,0.0113706,88050.0,88036.0,0.00017031]
[1767019406488,0.20456449,88050.0,88012.0,0.1079354]
[1767019406678,0.20456449,88040.0,88015.0,0.011375]
[1767019406885,0.09656,88057.0,88012.0,0.09656]
[1767019406886,0.0113711,88046.0,88012.0,0.09656]
[1767019407091,0.0113718,88041.0,88018.0,0.0113746]
[1767019407393,0.00017031,88038.0,88021.0,0.00011359]
[1767019407890,0.05784,88037.0,88021.0,0.00011359]
[1767019408890,0.20456449,88031.0,88007.0,0.011376]
[1767019409093,0.30116449,88031.0,88007.0,0.011376]
[1767019409589,0.20451449,88030.0,88006.0,0.0966]
[1767019409785,0.05784,88029.0,88006.0,0.0966]
[1767019410991,0.0692133,88029.0,88006.0,0.0966]
[1767019411191,0.0113723,88037.0,88006.0,0.0966]
[1767019411391,0.0113725,88035.0,88009.0,0.0113757]
[1767019411786,0.15444,88034.0,88009.0,0.0113757]
[1767019411982,0.00017031,88038.0,88006.0,0.0966]
[1767019412191,0.05784,88037.0,88010.0,0.11361376]
[1767019412496,0.05784,88037.0,88006.0,0.0966]
[1767019412888,0.05784,88037.0,88007.0,0.1136086]
[1767019413290,0.05784,88037.0,88009.0,0.0113757]
[1767019413598,0.05784,88037.0,88012.0,0.0113753]
[1767019413792,0.0692122,88037.0,88008.0,0.0113759]
[1767019413992,0.0692122,88037.0,88011.0,0.0113756]
[1767019414192,0.05784,88037.0,88011.0,0.0113756]
[1767019414386,0.20456449,88030.0,88003.0,0.0113766]
[1767019414591,0.0113734,88028.0,88004.0,0.15444]
[1767019414794,0.20456449,88020.0,87995.0,0.0113776]
[1767019414987,0.00017041,88018.0,87999.0,0.154]
[1767019415184,0.00017041,88018.0,87999.0,0.26760731]
[1767019415593,0.00017041,88018.0,87999.0,0.154]
[1767019415797,0.00017041,88018.0,88003.0,0.0113765]
[1767019416095,0.00017041,88018.0,87999.0,0.1653771]
[1767019416490,0.00017041,88018.0,88002.0,0.0113766]
[1767019416800,0.00017041,88018.0,87999.0,0.154]
[1767019417595,0.0966,88029.0,87999.0,0.154]
[1767019417596,0.3208,88065.0,88000.0,0.11362538]
[1767019417802,0.011368,88070.0,88014.0,0.0113751]
[1767019417803,0.0113713,88045.0,88014.0,0.0113751]
[1767019417991,0.20456449,88040.0,88016.0,0.0113749]
[1767019418186,0.05784,88040.0,88019.0,0.0113745]
[1767019418392,0.20456449,88030.0,88009.0,0.09664]
[1767019418692,0.00017041,88028.0,88011.0,0.00017041]
[1767019418892,0.00017041,88028.0,88012.0,0.0113754]
[1767019419295,0.00017041,88028.0,88011.0,0.00017041]
[1767019419605,0.0113747,88019.0,87990.0,0.15448]
[1767019419791,0.09664,88027.0,87990.0,0.15448]
[1767019419792,0.05784,88018.0,87990.0,0.15448]
[1767019420100,0.00017041,88028.0,88007.0,0.0113761]
[1767019420295,0.00017041,88028.0,88008.0,0.0113759]
[1767019420490,0.00017041,88028.0,88010.0,0.0113756]
[1767019420690,0.00017041,88028.0,88012.0,0.0113753]
[1767019420997,0.00017041,88028.0,88002.0,0.15448]
[1767019420998,0.00017041,88028.0,88009.0,0.0113758]
[1767019421199,0.00017041,88028.0,88005.0,0.0113763]
[1767019421399,0.00017041,88028.0,88003.0,0.11361054]
[1767019421605,0.00017041,88028.0,88001.0,0.0113767]
[1767019421606,0.0113737,88026.0,88001.0,0.0113767]
[1767019421902,0.15448,88025.0,88003.0,0.0113765]
[1767019422098,0.05784,88024.0,88003.0,0.0113765]
[1767019422305,0.0113737,88026.0,88003.0,0.0113765]
[1767019422495,0.05784,88024.0,88003.0,0.0113765]
[1767019422994,0.05784,88024.0,87996.0,0.15448]
[1767019422995,0.05784,88024.0,88007.0,0.0113761]
[1767019423194,0.00017041,88028.0,88003.0,0.0113765]
[1767019423195,0.05801041,88028.0,88003.0,0.0113765]
[1767019423400,0.05801041,88028.0,88005.0,0.0113762]
[1767019423601,0.05801041,88028.0,87996.0,0.15448]
[1767019423800,0.05801041,88028.0,88009.0,0.0113757]
[1767019424202,0.05801041,88028.0,88005.0,0.0113762]
[1767019424500,0.05801041,88028.0,88007.0,0.0113761]
[1767019425107,0.05801041,88028.0,88006.0,0.09664]
[1767019425801,0.05801041,88028.0,88009.0,0.0113758]
[1767019426206,0.05801041,88028.0,88006.0,0.1080162]
[1767019426797,0.00017041,88028.0,88006.0,0.1080162]
[1767019426999,0.00017041,88028.0,88006.0,0.1080161]
[1767019427400,0.0113735,88027.0,88006.0,0.09664]
[1767019427602,0.00017041,88028.0,88009.0,0.0113758]
[1767019427901,0.00017041,88028.0,88006.0,0.09664]
[1767019428097,0.00017041,88028.0,88010.0,0.0113756]
[1767019428701,0.00017041,88028.0,88015.0,0.0113751]
[1767019428903,0.00017041,88028.0,88007.0,0.05784]
[1767019429104,0.00017041,88028.0,88009.0,0.0113758]
[1767019429406,0.00017041,88028.0,88011.0,0.0113755]
[1767019429605,0.00017041,88028.0,88013.0,0.0113752]
[1767019429908,0.00017041,88028.0,88012.0,0.0113754]
[1767019430604,0.00017041,88028.0,88009.0,0.0113758]
[1767019431307,0.00017041,88028.0,88007.0,0.05784]
[1767019431308,0.00017041,88028.0,88011.0,0.0113755]
[1767019431904,0.00017041,88028.0,87997.0,0.0113773]
[1767019432105,0.00017041,88028.0,88008.0,0.0113759]
[1767019432305,0.00017041,88028.0,88010.0,0.0113756]
[1767019433314,0.00017041,88028.0,87998.0,0.15448]
[1767019433507,0.00017041,88028.0,88017.0,0.0113748]
[1767019433719,0.00017041,88028.0,88019.0,0.0113744]
[1767019434106,0.09664,88035.0,88019.0,0.0113744]
[1767019435212,0.09664,88035.0,88018.0,0.01154501]
[1767019435413,0.09664,88035.0,88020.0,0.0113743]
[1767019435605,0.09664,88035.0,88018.0,0.00017041]
[1767019436910,0.0610389,88061.0,88024.0,0.0113739]
[1767019437215,0.0113703,88053.0,88018.0,0.00017041]
[1767019437419,0.0113717,88042.0,88019.0,0.0113745]
[1767019437612,0.00227202,88028.0,88018.0,0.00017041]
[1767019437809,0.01364552,88028.0,88018.0,0.00017041]
[1767019438014,0.01364552,88028.0,88008.0,0.09664]
[1767019439115,0.0113735,88027.0,88009.0,0.00017041]
[1767019439311,0.011374,88024.0,87986.0,0.0113788]
[1767019439518,0.0113743,88022.0,88000.0,0.0113769]
[1767019439712,0.1658544,88021.0,88000.0,0.011377]
[1767019439908,0.15448,88021.0,88002.0,0.0113766]
[1767019440113,0.06011202,88028.0,88015.0,0.011375]
[1767019440305,0.02394737,88027.0,88003.0,0.09664]
[1767019440505,0.0338,88037.0,88019.0,0.0113745]
[1767019440706,0.0338,88037.0,88014.0,0.09664]
[1767019440912,0.0338,88037.0,88004.0,0.2102628]
[1767019441112,0.0338,88037.0,88004.0,0.09664]
[1767019441317,0.011372,88039.0,88016.0,0.0113749]
[1767019441510,0.00017041,88036.0,88025.0,0.0113738]
[1767019441814,0.01137,88054.0,88019.0,0.00017041]
[1767019442012,0.15448,88053.0,88032.0,0.0113727]
[1767019442509,0.15448,88053.0,88031.0,0.0113729]
[1767019442708,0.00017041,88051.0,88033.0,0.00017041]
[1767019443107,0.0610389,88071.0,88033.0,0.00017041]
[1767019443309,0.0113654,88090.0,88039.0,0.0113719]
[1767019443310,0.0113684,88067.0,88039.0,0.0113719]
[1767019443505,0.09664,88073.0,88040.0,0.09664]
[1767019443908,0.09664,88073.0,88019.0,0.0113745]
[1767019444106,0.0113692,88061.0,88032.0,0.0113728]
[1767019444310,0.00017041,88054.0,88037.0,0.00017041]
[1767019444821,0.00017041,88054.0,88038.0,0.0113721]
[1767019445023,0.00017041,88054.0,88037.0,0.00017041]
[1767019445708,0.00017041,88054.0,88037.0,0.09681041]
[1767019446112,0.00017041,88054.0,88038.0,0.011372]
[1767019446523,0.00017041,88054.0,88037.0,0.09681041]
[1767019446524,0.00017041,88054.0,88041.0,0.0113716]
[1767019446712,0.00017041,88054.0,88037.0,0.09681041]
[1767019447108,0.00017041,88054.0,88037.0,0.00017041]
[1767019448315,0.0113707,88049.0,88024.0,0.09664]
[1767019448517,0.0113711,88046.0,88025.0,0.09664]
[1767019448824,0.0113717,88042.0,88020.0,0.0113744]
[1767019449020,0.09664,88043.0,88020.0,0.0113744]
[1767019449416,0.00017041,88040.0,88023.0,0.01154441]
[1767019449818,0.00017041,88040.0,88026.0,0.0113736]
[1767019450126,0.00017041,88040.0,88031.0,0.0113729]
[1767019450513,0.0113694,88060.0,88034.0,0.0113726]
[1767019450727,0.15448,88059.0,88034.0,0.0113726]
[1767019450929,0.15448,88059.0,88041.0,0.0113717]
[1767019451521,0.15448,88059.0,88041.0,0.00017041]
[1767019451522,0.00017041,88059.0,88041.0,0.00017041]
[1767019451725,0.0113674,88075.0,88041.0,0.00017041]
[1767019452120,0.0113674,88075.0,88051.0,0.0113704]
[1767019452322,0.0113674,88075.0,88049.0,0.09664]
[1767019452525,0.14236,88076.0,88049.0,0.09664]
[1767019452526,0.0113676,88073.0,88049.0,0.09664]
[1767019452733,0.00017041,88070.0,88049.0,0.09664]
[1767019453321,0.00017041,88070.0,88049.0,0.1080105]
[1767019453921,0.00017041,88070.0,88049.0,0.09664]
[1767019454227,0.00017041,88070.0,88041.0,0.00017041]
[1767019454427,0.02370115,88069.0,88043.0,0.0113714]
[1767019454732,0.01153841,88070.0,88043.0,0.0113714]
[1767019455225,0.0113689,88064.0,88044.0,0.09664]
[1767019455428,0.0113689,88064.0,88041.0,0.00017041]
[1767019455429,0.1658489,88064.0,88041.0,0.01154201]
[1767019455835,0.01137,88055.0,88041.0,0.00017041]
[1767019456131,0.0113708,88049.0,88025.0,0.0113737]
[1767019456339,0.1080108,88049.0,88025.0,0.0113737]
[1767019456639,0.09664,88049.0,88027.0,0.0113734]
[1767019456829,0.0113712,88046.0,88024.0,0.09664]
[1767019457031,0.00017041,88044.0,88026.0,0.00017041]
[1767019457735,0.00017041,88044.0,88034.0,0.0113726]
[1767019457941,0.00017041,88044.0,88030.0,0.011373]
[1767019458130,0.00017041,88044.0,88026.0,0.00017041]
[1767019459337,0.00017041,88044.0,88031.0,0.0113729]